Cogmind - Beta 16.1 @@@ ROGUE MODE // 2026.04.08 @ 19:51:25 Player: Null_error Result: Destroyed by H-55 Commando with Assault Rifle Performance ------------- Evolutions (3) 1500 Regions Visited (5) 1000 Robots Destroyed (25) 125 Value Destroyed (680) 680 Prototype IDs (5) 100 Alien Tech Used (0) 0 Bonus (0) 0 TOTAL SCORE: 3405 Bonus ------- None Cogmind --------- Core Integrity 0/700 Matter 196/300 Energy 100/100 System Corruption 3% Temperature Cool (0) Movement Core (50) Location -7/Storage Parts ------- > --- POWER (2) -------- (None) > --- PROPULSION (4) --- (None) > --- UTILITY (5) ------ Improved Signal Interpreter > --- WEAPON (2) ------- (None) > --- INVENTORY (5) ---- Heavy EM Shotgun Medium Laser Grenade Launcher Peak State ------------ > --- POWER ------------ Light Deuterium Engine > --- PROPULSION ------- VTOL Module Cesium-ion Thruster Cesium-ion Thruster Cesium-ion Thruster > --- UTILITY ---------- Small Storage Unit Improved Signal Interpreter Seismic Detector > --- WEAPON ----------- Advanced Beam Rifle Maul > --- INVENTORY -------- Armored Treads Armored Treads Cesium-ion Thruster Heavy EM Shotgun Medium Laser Grenade Launcher Plasma Cutter [Rating: 26] Favorites ----------- Power Ion Engine Engine Ion Engine Power Core Light Nuclear Core Propulsion Cesium-ion Thruster Treads Light Treads Leg Aluminum Leg Wheel Compact Wheel Flight Unit Cesium-ion Thruster Utility Small Storage Unit Device Seismic Detector Storage Small Storage Unit Processor Improved Signal Interpreter Weapon Heavy EM Shotgun Energy Gun Heavy EM Shotgun Ballistic Gun Improved Assault Rifle Special Weapon Plasma Cutter Impact Weapon Maul Build | -11 -10 -9 -8 -7 -7 ------- Run | Yrd Mat Mat Mat Fac Sto Slots Evolved 6 | . . 2 2 2 . Power 1 | . . . . 1 . Propulsion 2 | . . . 2 . . Utility 3 | . . 2 . 1 . Weapon . | . . . . . . Parts Attached 40 | 9 . 12 15 2 2 Power 7 | 1 . 3 3 . . Engine 6 | 1 . 3 2 . . Core 1 | . . . 1 . . Reactor . | . . . . . . Propulsion 16 | 3 . 5 7 . 1 Treads 4 | 1 . 2 . . 1 Leg 2 | . . . 2 . . Wheel 2 | 2 . . . . . Hover . | . . . . . . Flight 8 | . . 3 5 . . Utility 8 | 3 . 1 3 1 . Device 5 | 2 . 1 2 . . Storage 1 | 1 . . . . . Processor 2 | . . . 1 1 . Hackware . | . . . . . . Protection . | . . . . . . Artifact . | . . . . . . Weapon 9 | 2 . 3 2 1 1 Energy Gun 5 | 2 . 2 1 . . Energy Cannon . | . . . . . . Ballistic Gun 1 | . . 1 . . . Ballistic Cannon . | . . . . . . Launcher . | . . . . . . Special Weapon 1 | . . . . . 1 Impact Weapon 2 | . . . 1 1 . Slashing Weapon . | . . . . . . Piercing Weapon . | . . . . . . Special Melee Weapon . | . . . . . . Unidentified Prototypes 5 | . . 4 1 . . Parts Lost 20 | . . 4 10 2 4 Power 3 | . . . 2 1 . Propulsion 9 | . . 1 5 1 2 Utility 5 | . . 2 3 . . Weapon 3 | . . 1 . . 2 Highest Loss Streak 6 | . . 2 6 2 3 To Critical Strikes . | . . . . . . Average Backups 6 | 2 5 7 7 5 4 Power . | 1 2 1 . . . Propulsion 3 | 1 3 4 2 1 . Utility . | . . . . . . Weapon 2 | . . 2 3 3 3 Tool/Special . | . . . . . . Unused Backups 6 | . . 2 3 . 1 Power 1 | . . 1 . . . Propulsion 3 | . . 1 2 . . Utility 1 | . . . 1 . . Weapon 1 | . . . . . 1 Tool/Special . | . . . . . . Average Slot Usage (%) 68 | . 100 77 68 20 25 Engine 8 | . 14 11 5 . . Treads 2 | . . 3 . . 4 Wheel 6 | . 28 10 . . . Flight 13 | . . 7 29 8 4 Device 9 | . 14 12 9 . . Storage 8 | . 14 11 8 . . Processor 1 | . . . 2 3 7 Energy Gun 12 | . 28 17 6 . . Ballistic Gun 2 | . . 4 . . . Impact Weapon 2 | . . . 5 3 6 Peak Build Rating 26 | 9 7 18 26 10 12 Average Rating 13 | 5 7 13 20 8 9 On Entrance 7 | . 7 7 11 10 10 Avg Prop Armor Cover (%) 15 | . . 3 . . 29 Naked Turns . | . . . . . . Heaviest Build 20 | 14 14 20 16 5 4 Greatest Support 32 | 32 32 32 20 6 20 Greatest Overweight (x) 3 | . . 3 1 1 1 Average Overweight (x) . | . . . . . . Largest Inventory Capacity 8 | 8 8 8 8 5 5 Average Capacity 7 | 7 8 8 7 5 5 Most Carried 8 | 5 6 8 8 5 5 Average Carried 6 | 2 5 7 7 5 4 Final Capacity 8 | 8 8 8 5 5 5 Final Carried 8 | 5 6 8 5 5 3 Class Distribution -------------------- 72% | Mutant 27% | Sprinter Dominant Class ---------------- Mutant | -10/Materials Mutant | -9/Materials Sprinter | -8/Materials Mutant | -7/Factory Mutant | -7/Storage Resources | -11 -10 -9 -8 -7 -7 ----------- Run | Yrd Mat Mat Mat Fac Sto Matter Collected 502 | 117 . 346 39 . . Remotely . | . . . . . . Salvage Created 1017 | 92 . 856 69 . . Parts 60 | 7 . 51 2 . . Haulers Intercepted 1 | . . 1 . . . Recyclers Shooed . | . . . . . . Parts Field Recycled . | . . . . . . Retrieved Matter . | . . . . . . Parts Self-Destructed . | . . . . . . Prevented . | . . . . . . Parts Restored . | . . . . . . Kills | -11 -10 -9 -8 -7 -7 ------- Run | Yrd Mat Mat Mat Fac Sto Combat Hostiles Destroyed 19 | . . 18 1 . . Guns 18 | . . 17 1 . . AOE 1 | . . 1 . . . Classes Destroyed 9 | 2 . 6 1 . . Worker 1 | . . 1 . . . Tunneler 2 | 2 . . . . . Hauler 1 | . . 1 . . . Recycler 1 | 1 . . . . . Watcher 1 | . . . 1 . . Swarmer 4 | . . 4 . . . Grunt 11 | . . 10 1 . . Duelist 1 | . . 1 . . . Sentry 3 | . . 3 . . . Best Kill Streak 3 | 3 . 3 1 . . Combat Bots Only 3 | . . 3 1 . . Max Kills in Single Turn 1 | 1 . 1 1 . . Gunslinging . | . . . . . . Exploded 1 | . . 1 . . . Melee . | . . . . . . Uniques/NPCs Destroyed . | . . . . . . Combat | -11 -10 -9 -8 -7 -7 -------- Run | Yrd Mat Mat Mat Fac Sto Hostile Shots Fired 390 | . . 60 91 19 220 Missed 168 | . . 20 44 7 97 Hits 222 | . . 40 47 12 123 Melee 9 | . . 3 6 . . Projectile 213 | . . 37 41 12 123 AOE 2 | . . . 2 . . Critical Strikes 4 | . . 1 1 . 2 Damage Taken 2705 | . 6 571 880 180 1068 Core 1162 | . . 59 396 80 627 Absorbed by Shields 30 | . . . . . 30 Core Remaining (%) 78 | 100 100 85 28 . . Volleys Fired 47 | 4 . 36 6 . 1 Largest 2 | 2 . 2 1 . 1 Hottest 100 | 90 . 100 61 . 20 Shots Fired 82 | 8 . 67 6 . 1 Gun 81 | 8 . 67 6 . . Cannon . | . . . . . . Launcher . | . . . . . . Special 1 | . . . . . 1 Kinetic 14 | . . 14 . . . Thermal 37 | 8 . 22 6 . 1 Explosive . | . . . . . . Electromagnetic 31 | . . 31 . . . Robot Hit Streak 11 | 6 . 11 3 . . Robot Miss Streak 2 | . . 2 2 . . Penetration Max . | . . . . . . Secondary Targets 2 | . . 2 . . . Max Gunslinging Chain 1 | . . 1 . . . Shots Hit Robots 64 | 6 . 52 6 . . Core Hits 40 | 4 . 34 2 . . Critical Kills . | . . . . . . Critical Parts Destroyed 1 | . . . 1 . . Critical Strikes 2 | . . . 2 . . Burn 1 | . . . 1 . . Smash 1 | . . . 1 . . Melee Attacks 18 | . . . 18 . . Impact 18 | . . . 18 . . Slashing . | . . . . . . Piercing . | . . . . . . Sneak Attacks 1 | . . . 1 . . Combat Hostiles 1 | . . . 1 . . Follow-up Attacks . | . . . . . . Damage Inflicted 1188 | 72 12 879 215 . 10 Guns 1009 | 72 . 857 80 . . Cannons . | . . . . . . Explosions 22 | . . 22 . . . Melee 135 | . . . 135 . . Ramming 22 | . 12 . . . 10 Kinetic 157 | . . 157 . . . Thermal 347 | 72 . 195 80 . . Explosive . | . . . . . . Electromagnetic 527 | . . 527 . . . Impact 135 | . . . 135 . . Slashing . | . . . . . . Piercing . | . . . . . . Highest Corruption 8 | . . . 8 1 3 Average Corruption 2 | . . . 8 1 1 Corruption Purged . | . . . . . . Corruption Blocked . | . . . . . . Effects 2 | . . . 1 . 1 Message Errors 1 | . . . 1 . . Matter Fused 1 | . . . . . 1 Overload Shots . | . . . . . . Overflow Damage 85 | . . . 85 . . Projectiles . | . . . . . . Explosions . | . . . . . . Melee 85 | . . . 85 . . Knockbacks 1 | . . . 1 . . Impact 1 | . . . 1 . . Kinetic . | . . . . . . Secondary . | . . . . . . Self-Inflicted Damage 39 | . 6 29 . . 4 Shots 1 | . . 1 . . . Rammed 4 | . 1 . . . 3 Targets Rammed 4 | . 1 . . . 3 Kicked . | . . . . . . Crushed . | . . . . . . Highest Temperature 238 | 60 . 238 121 . 14 Average Temperature 52 | 25 . 53 67 . 9 Received Heat Transfer 708 | . . 204 180 39 285 Effects 3 | . . 3 . . . Interference 3 | . . 3 . . . Siege Activations . | . . . . . . Martial Activations . | . . . . . . Shielding Activations . | . . . . . . Robots Disrupted . | . . . . . . Combat Hostiles . | . . . . . . Robots Corrupted 1 | . . . 1 . . Combat Hostiles . | . . . . . . Parts Fried 4 | . . 3 1 . . Impact Corruptions 2 | . . . 2 . . Robots Melted . | . . . . . . Combat Hostiles . | . . . . . . Parts Melted 3 | 1 . 1 1 . . Heat Transferred 952 | 186 . 544 222 . . Parts Sabotaged . | . . . . . . Parts Stolen . | . . . . . . Parts Stripped . | . . . . . . Power Chain Reactions 1 | . . 1 . . . Alert | -11 -10 -9 -8 -7 -7 ------- Run | Yrd Mat Mat Mat Fac Sto Maximum Alert Level 1 | . . 1 1 . . Low Security (%) 94 | 100 100 95 87 100 100 Level 1 5 | . . 4 12 . . Level 2 . | . . . . . . Level 3 . | . . . . . . Level 4 . | . . . . . . Level 5 . | . . . . . . High Security . | . . . . . . Max Security . | . . . . . . Peak Influence 348 | 10 16 261 348 163 65 Initial 158 | . . . 98 158 65 Average 78 | 2 4 81 99 148 49 Influence Increases 1152 | 15 16 526 520 45 30 Destroy 0b10 Robot/C 380 | . . 360 20 . . Destroy 0b10 Robot/NC 30 | 15 . 10 5 . . Destroy Leader 94 | . . 92 2 . . Successful Hack 16 | . 16 . . . . Disable Machine 15 | . . 15 . . . Destroy Structure 17 | . . 4 13 . . Partial Spotted 45 | . . . 30 . 15 Lose Combat Pursuer 555 | . . 45 450 45 15 Influence Decreases 1137 | 15 16 293 405 250 158 Entered New Map 403 | . . . 135 190 78 Time Decay 534 | 15 16 253 170 40 40 Lost Part 200 | . . 40 100 20 40 Squads Dispatched 8 | . . 3 4 1 . Investigation 2 | . . 2 . . . Extermination . | . . . . . . Reinforcement 6 | . . 1 4 1 . Assault . | . . . . . . Garrison . | . . . . . . Intercept . | . . . . . . Searches Triggered . | . . . . . . Construction Impeded . | . . . . . . Haulers Reinforced . | . . . . . . Active Scanning Responses . | . . . . . . Cargo Convoy Interrupts . | . . . . . . Stealth | -11 -10 -9 -8 -7 -7 --------- Run | Yrd Mat Mat Mat Fac Sto Distress Signals 8 | . . 3 5 . . Communications Jammed . | . . . . . . Distress Signals . | . . . . . . Times Spotted 85 | . 2 24 43 5 11 Peak Tracking Total 21 | . 2 5 21 3 11 Tactical Retreats 11 | . . 1 8 1 1 Traps | -11 -10 -9 -8 -7 -7 ------- Run | Yrd Mat Mat Mat Fac Sto Traps Triggered 7 | . . 2 1 3 1 Indirectly . | . . . . . . Trap Hack Attempts . | . . . . . . Triggered . | . . . . . . Disarmed . | . . . . . . Reprogrammed . | . . . . . . Reused . | . . . . . . Traps Extracted . | . . . . . . Installed . | . . . . . . Triggered . | . . . . . . Machines | -11 -10 -9 -8 -7 -7 ---------- Run | Yrd Mat Mat Mat Fac Sto Machines Disabled 1 | . . 1 . . . Max in Single Turn 1 | . . 1 . . . Machines Repaired . | . . . . . . Machines Dismantled . | . . . . . . Machines Sabotaged . | . . . . . . Overloaded Fab Kills . | . . . . . . Hacking | -11 -10 -9 -8 -7 -7 --------- Run | Yrd Mat Mat Mat Fac Sto Machines Accessed 2 | . 1 . . . 1 Terminals 2 | . 1 . . . 1 Fabricators . | . . . . . . Repair Stations . | . . . . . . Recycling Units . | . . . . . . Scanalyzers . | . . . . . . Garrison Access . | . . . . . . Total Hacks 3 | . 2 . . . 1 Successful 2 | . 1 . . . 1 Failed 1 | . 1 . . . . Catastrophic 1 | . 1 . . . . Database Lockouts . | . . . . . . Manual 3 | . 2 . . . 1 Terminals 3 | . 2 . . . 1 Fabricators . | . . . . . . Repair Stations . | . . . . . . Recycling Units . | . . . . . . Scanalyzers . | . . . . . . Garrison Access . | . . . . . . Terminal Hacks . | . . . . . . Fabricator Hacks . | . . . . . . Repair Station Hacks . | . . . . . . Recycling Unit Hacks . | . . . . . . Scanalyzer . | . . . . . . Garrison Access Hacks . | . . . . . . Unauthorized Hacks 2 | . 1 . . . 1 Terminals 2 | . 1 . . . 1 Assimilate 2 | . 1 . . . 1 Fabricators . | . . . . . . Repair Stations . | . . . . . . Recycling Units . | . . . . . . Scanalyzers . | . . . . . . Garrison Access . | . . . . . . Data Cores Recovered . | . . . . . . Used . | . . . . . . Hacking Detections 1 | . 1 . . . . Full Trace Events 1 | . 1 . . . . Feedback Events . | . . . . . . Feedback Blocked . | . . . . . . Robot Schematics Acquired . | . . . . . . Robots Built . | . . . . . . Authchips . | . . . . . . Time . | . . . . . . Total Robot Build Rating . | . . . . . . Part Schematics Acquired . | . . . . . . Parts Built . | . . . . . . Authchips . | . . . . . . Time . | . . . . . . Total Part Build Rating . | . . . . . . Part Studies Acquired . | . . . . . . Parts Repaired . | . . . . . . Time . | . . . . . . Parts Recycled . | . . . . . . Recycled Matter . | . . . . . . Retrieved Matter . | . . . . . . Retrieved Components . | . . . . . . Parts Scanalyzed . | . . . . . . Part Schematics Acquired . | . . . . . . Parts Damaged . | . . . . . . Bothacking | -11 -10 -9 -8 -7 -7 ------------ Run | Yrd Mat Mat Mat Fac Sto Used RIF Installer . | . . . . . . Robots Hacked . | . . . . . . Non-combat . | . . . . . . Combat . | . . . . . . Robot Hacks Applied . | . . . . . . Relay Couplers Released . | . . . . . . Fabnet Peak Effective % . | . . . . . . Robots Rewired . | . . . . . . Allies Hacked . | . . . . . . Hacks Repelled . | . . . . . . Allies | -11 -10 -9 -8 -7 -7 -------- Run | Yrd Mat Mat Mat Fac Sto Total Allies . | . . . . . . Largest Group . | . . . . . . Highest-Rated Group . | . . . . . . Highest-Rated Ally . | . . . . . . Total Orders . | . . . . . . Ally Attacks . | . . . . . . Total Damage . | . . . . . . Kills . | . . . . . . Allies Corrupted . | . . . . . . Allies Melted . | . . . . . . Intel | -11 -10 -9 -8 -7 -7 ------- Run | Yrd Mat Mat Mat Fac Sto Active Infowar (turns) 972 | 14 82 553 323 . . Sensors 405 | . . 405 . . . Terrain 7 | 7 . . . . . Seismic 655 | 7 82 243 323 . . Robot Analysis Total . | . . . . . . Derelict Logs Recovered . | . . . . . . Drone Launches . | . . . . . . Drone Recoveries . | . . . . . . Exploration | -11 -10 -9 -8 -7 -7 ------------- Run | Yrd Mat Mat Mat Fac Sto Turns Passed 1328 | 81 82 632 359 82 92 Spaces Moved 1465 | 46 81 377 599 203 159 Core 77 | 1 . . . . 76 Treads 128 | 9 . 118 . . 1 Legs . | . . . . . . Wheels 324 | 36 81 207 . . . Hover . | . . . . . . Flight 936 | . . 52 599 203 82 Fastest Speed 26 | 50 100 100 26 32 35 Average Speed 62 | 110 100 121 29 34 49 Slowest Speed 280 | 160 100 280 112 75 170 Overloaded Moves . | . . . . . . Propulsion Burnouts . | . . . . . . Robots Hopped 10 | . . . 5 2 3 Potential Cave-ins 1 | . . . 1 . . Cave-ins Triggered . | . . . . . . Exploration Rate (%) 27 | 3 25 35 57 8 39 Regions Visited 5 Branch Regions 1 Pre-discovered Areas . | . . . . . . Known Exits Taken 1 | . . . . 1 . Unknown Exits Taken 4 | 1 1 1 1 . . Scrap Searched . | . . . . . . Spaces Dug 14 | . . . 14 . . Terrain Destroyed 16 | . . 2 14 . . Melee 14 | . . . 14 . . Projectile . | . . . . . . AOE 2 | . . 2 . . . Terrain Rammed . | . . . . . . Walls Destroyed . | . . . . . . Machines Disabled . | . . . . . . Actions | -11 -10 -9 -8 -7 -7 --------- Run | Yrd Mat Mat Mat Fac Sto Total 1736 | 63 82 482 732 210 167 Wait 136 | . . 47 81 8 . Move 1440 | 45 80 376 588 198 153 Hop 10 | . . . 5 2 3 Pick Up 16 | 5 1 3 7 . . Fast Attach 20 | 7 . 4 7 2 . Attach 6 | . . . 4 . 2 Detach 3 | . . 2 1 . . Swap 20 | 2 . 10 8 . . Drop 11 | . . 4 7 . . Fire 47 | 4 . 36 6 . 1 Melee 18 | . . . 18 . . Ram 4 | . 1 . . . 3 Kick . | . . . . . . Crush . | . . . . . . Escape Stasis 5 | . . . . . 5 Rewire . | . . . . . . Trap . | . . . . . . Miscellaneous . | . . . . . . Route ------- -11/Scrapyard -10/Materials -9/Materials -8/Materials -7/Factory -7/Storage History --------- Turn | Location | Event 25 | -11/Scrapyard | Discovered new exit (range 16) 82 | -11/Scrapyard | Entered Materials 142 | -10/Materials | Discovered new exit (range 14) 164 | -10/Materials | Entered another Materials area 164 | -9/Materials | Evolved 2 slots: Utility x2 304 | -9/Materials | Build established: Mutant 771 | -9/Materials | Discovered new exit (range 11) 796 | -9/Materials | Entered another Materials area 796 | -8/Materials | Evolved 2 slots: Propulsion x2 1060 | -8/Materials | Lost 4 parts (2p2n) 1086 | -8/Materials | Build established: Sprinter 1130 | -8/Materials | Core integrity fell below 50% 1150 | -8/Materials | Discovered new exit (range 14) 1155 | -8/Materials | Entered Factory 1155 | -7/Factory | Evolved 2 slots: Power x1, Utility x1 1163 | -7/Factory | Lost 6 parts (3n3u) 1221 | -7/Factory | Discovered new exit (range 16) 1237 | -7/Factory | Identified exit to Storage 1237 | -7/Factory | Entered Storage 1323 | -7/Storage | Core integrity fell below 50% 1326 | -7/Storage | Core integrity fell below 20% 1329 | -7/Storage | Destroyed by H-55 Commando with Assault Rifle Last Messages --------------- 01268_ Connecting with Terminal... >>Trojan(Assimilate) Trojan loaded successfully. Testing... System interface override in place. 01283_ Surge Thruster destroyed. [Achievement: Physics Hates This One Trick] 01296_ Penetrated by Slug. 01297_ Slammed into H-55 Commando. 01297_ Destabilizing: System corrupted (+2). 01298_ Slammed into H-55 Commando. 01299_ Penetrated by Slug. 01305_ Slug penetrates Wall. 01316_ Connecting with Door Terminal... 01317_ Hvy. Flail destroyed. 01320_ Plasma Cutter destroyed. 01320_ Arm. Treads destroyed. 01324_ Critical hit (Burn: +37). 01325_ Slammed into U-05 Engineer. 01327_ System corrupted: Matter fused (-5). Map ----- +----------------------------------------------------+ | ??????????????????????????????????# | | ???????????????????????????????#+### ############# | | ????????????????????############ #?# #?? """ #???# | | ????????????????????# ## #?# #??""T""#???# | | ????????????????????# ! ## ###+###"" ""###?? | | ????????????????????# ## # #? | | ????????????????????# """ """ ## # """ """ """ #?? | | ????????????????????# """ """ # # """ """ """??# | | ????????????????????# """ """ # / """ """ """ ## | | ????????????????????# / # ### | | ????????????????????# # # #?? | | ????????????????????####+###### ########+##+#### | | ??????????????????????## ##### #?????????????# | | ??????????????????????# #??????????????? | | ??????????????????????# #??????????????? | | ??????????????????????# ##### #??????????????? | | ???????????????????""?# #???######??????????????? | | ????????????????" ??"?# #???????????????????????? | | ????????????????" ""? #hY#???????????????????????? | | ???????????????"" """ # #???????????????????????? | | ???????????????"" """ ; #???????????????????????? | | ????????????# # #???????????????????????? | | ????????????########?## ##??????????????????????? | | ??????????????"####### u #######+####???????????? | | ??????????????" p g Y a ????????? | | ??????????????" Yg@ ????????? | | ??????????????"#T##### ########+##????????????? | | ???????????????########+########?????????????????? | | ?????????????????# #?????????????????? | | ?????????????????# #?????????????????? | | ?????????????????# #?????????????????? | | ?????????????????# #?????????????????? | | ?????????????????# #?????????????????? | | ?????????????????# #?????????????????? | | ?????????????????###############?????????????????? | | | | | | | | | | | | | | | | | | | | | | | | | | | | | | | +----------------------------------------------------+ Best States ------------- Heat Dissipation 34 Energy Generation 14 Energy Capacity 280 Matter Stores 300 Matter Capacity 300 Sight Range 16 Robot Scan Range 14 Terrain Scan Range 16 Terrain Scan Density 10 Evasion (%) 64 Recoil Reduction 1 Item Schematics ----------------- None Robot Schematics ------------------ None Fabricated ------------ Nothing Repaired ---------- Nothing Studied --------- None Alien Tech Used ----------------- None Achievements -------------- Physics Hates This One Trick Challenges ------------ None Game ------ Seed ReflectiveNodeStrikerail Manual? 0 Play Time 00:24:48 Cumulative 78.9 hours Start 2026.02.10 @ 19:14:25 End 2026.04.08 @ 19:51:25 Sessions 3 Manual Loads 0 Difficulty Rogue Special Mode None Game No. 98 Rogue 98 Adventurer 0 Explorer 0 Win Type - Total 1 Types 1/0/0/0/0/0/0/0/0/0 Lore% 27 Gallery% 44 Achievement% 22 Wizard Run 0 Options --------- Layout 1 ASCII 0 Keyboard 1 Movement Numpad Keybinds 0 Fullscreen 1 Font 24/Smallcaps Map View 50x35 Zoom Use 0% Tactical HUD 1 Map Filters NONE Filters LOW_CONTRAST(5,10,15) Steam 1 RUN: f6c4e1c5-a384-461c-b511-aab70bc71abe